bitfinex/quotes_BTCUSD_20241205
["timestamp","ask_amount","ask_price","bid_price","bid_amount"]
[1733404450937,0.00103821,103090.0,103080.0,1.02284971]
[1733404451178,0.00103821,103090.0,103080.0,0.87173099]
[1733404451397,0.00103821,103090.0,103080.0,1.13127993]
[1733404451898,0.00103821,103090.0,103080.0,0.77708341]
[1733404452117,0.00703821,103090.0,103080.0,0.88660388]
[1733404452336,0.00703821,103090.0,103080.0,0.88670462]
[1733404452576,0.00703821,103090.0,103080.0,0.88770462]
[1733404452577,0.01203821,103090.0,103080.0,0.88770462]
[1733404453029,0.01203821,103090.0,103080.0,0.62805494]
[1733404453263,0.00603821,103090.0,103080.0,0.64649999]
[1733404453485,0.00603821,103090.0,103080.0,0.86290817]
[1733404453700,0.01003821,103090.0,103080.0,0.86290817]
[1733404454146,0.01003821,103090.0,103080.0,0.64649999]
[1733404454364,0.01003821,103090.0,103080.0,0.86291457]
[1733404455676,0.08953821,103090.0,103080.0,0.91457933]
[1733404456320,0.08953821,103090.0,103080.0,1.0230998]
[1733404456543,0.01003821,103090.0,103080.0,1.0230998]
[1733404457842,0.01003821,103090.0,103080.0,1.22277585]
[1733404458073,0.01003821,103090.0,103080.0,1.38670223]
[1733404458280,0.01003821,103090.0,103080.0,1.35007585]
[1733404458501,0.01003821,103090.0,103080.0,1.35003452]
[1733404458727,0.01003821,103090.0,103080.0,1.13366127]
[1733404458949,0.01003821,103090.0,103080.0,1.35004758]
[1733404459510,0.01003821,103090.0,103080.0,1.39331095]
[1733404459732,0.01003821,103090.0,103080.0,1.41631095]
[1733404459937,0.01003821,103090.0,103080.0,1.54005025]
[1733404460348,0.01003821,103090.0,103080.0,1.57527353]
[1733404460584,0.01003821,103090.0,103080.0,1.70447405]
[1733404460989,0.01003821,103090.0,103080.0,1.32108507]
[1733404461196,2.1e-07,103090.0,103080.0,1.70417206]
[1733404462248,2.1e-07,103090.0,103080.0,1.73688308]
[1733404462473,2.1e-07,103090.0,103080.0,1.70417206]
[1733404463080,5e-05,103110.0,103100.0,0.293986]
[1733404463284,5e-05,103110.0,103100.0,1.03018184]
[1733404463493,5e-05,103110.0,103100.0,1.24515184]
[1733404464333,5e-05,103110.0,103100.0,1.39515184]
[1733404464546,5e-05,103110.0,103100.0,1.35992856]
[1733404465168,0.00405,103110.0,103100.0,1.36092856]
[1733404465376,0.00405,103110.0,103100.0,1.28512856]
[1733404465592,0.00405,103110.0,103100.0,1.09252114]
[1733404467365,0.00405,103110.0,103100.0,1.10288362]
[1733404468037,0.00405,103110.0,103100.0,1.12266048]
[1733404468258,0.00405,103110.0,103100.0,0.90681233]
[1733404470364,0.00405,103110.0,103100.0,1.12266048]
[1733404470600,0.00405,103110.0,103100.0,1.22266048]
[1733404471754,0.0049176,103110.0,103100.0,1.22266048]
[1733404471982,0.0049176,103110.0,103100.0,1.12266048]
[1733404473140,0.0049176,103110.0,103100.0,1.88556396]
[1733404473384,0.0049176,103110.0,103100.0,1.66971581]
[1733404476548,0.0880176,103110.0,103100.0,1.66971581]
[1733404477022,0.0880176,103110.0,103100.0,1.70192825]
[1733404478316,0.0797009,103110.0,103100.0,1.70192825]
[1733404479225,0.0797009,103110.0,103100.0,1.81044872]
[1733404479444,0.0008673,103120.0,103110.0,0.193967]
[1733404479689,0.0008673,103120.0,103110.0,0.41197756]
[1733404479917,0.0008673,103120.0,103110.0,0.62596794]
[1733404480860,0.0058673,103120.0,103110.0,0.62696794]
[1733404481105,0.0058673,103120.0,103110.0,0.82664399]
[1733404481332,0.0058673,103120.0,103110.0,0.90614399]
[1733404482268,0.0058673,103120.0,103110.0,1.12199214]
[1733404483575,0.0018673,103120.0,103110.0,1.12199214]
[1733404483798,0.0008673,103120.0,103110.0,1.12099214]
[1733404484021,0.0008678,103130.0,103120.0,0.426548]
[1733404484270,0.2518678,103150.0,103140.0,0.30243147]
[1733404484478,0.2520437,103150.0,103140.0,0.30243147]
[1733404484699,0.2520437,103150.0,103140.0,0.51736147]
[1733404484923,0.3272437,103150.0,103140.0,0.51736147]
[1733404485138,0.3272437,103150.0,103140.0,0.62588194]
[1733404486849,0.3272437,103150.0,103140.0,0.51736147]
[1733404487077,0.3791437,103150.0,103140.0,0.51836147]
[1733404487733,0.47881975,103150.0,103140.0,0.21593]
[1733404487956,0.67271175,103150.0,103140.0,0.21593]
[1733404488630,2.27271175,103150.0,103140.0,0.21593]
[1733404488839,0.77271175,103150.0,103140.0,0.21593]
[1733404489692,0.77171175,103150.0,103140.0,0.21493]
[1733404489955,0.76771175,103150.0,103140.0,0.21493]
[1733404490166,0.78071175,103150.0,103140.0,0.21593]
[1733404490385,0.96963097,103150.0,103140.0,0.21493]
[1733404490596,0.86771175,103150.0,103140.0,0.21493]
[1733404490815,0.87671175,103150.0,103140.0,0.21593]
[1733404491062,0.88071175,103150.0,103140.0,0.21593]
[1733404491340,0.68071175,103150.0,103140.0,0.00973]
[1733404491552,0.193967,103110.0,103100.0,1.15331244]
[1733404491779,0.193967,103110.0,103100.0,1.26183291]
[1733404491780,0.29364305,103110.0,103100.0,1.26183291]
[1733404492246,0.29364305,103110.0,103100.0,1.35882291]
[1733404492717,0.29364305,103110.0,103100.0,1.10030244]
[1733404493165,0.29364305,103110.0,103100.0,1.10130244]
[1733404493380,0.30264305,103110.0,103100.0,1.20982291]
[1733404493601,0.30264305,103110.0,103100.0,1.10130244]
[1733404493824,0.30264305,103110.0,103100.0,1.20982291]
[1733404494038,0.30264305,103110.0,103100.0,1.10130244]
[1733404494254,0.30564305,103110.0,103100.0,1.10130244]
[1733404494457,0.30564305,103110.0,103100.0,1.20982291]
[1733404494669,0.11167605,103110.0,103100.0,1.20982291]
[1733404494886,0.012,103110.0,103100.0,1.42680891]
[1733404495303,0.012,103110.0,103100.0,1.42767611]
[1733404498157,0.012,103110.0,103100.0,1.42767611]
[1733404498994,0.012,103110.0,103100.0,1.44662248]
[1733404500050,0.012,103110.0,103100.0,1.42767611]
[1733404500292,0.205967,103110.0,103100.0,1.12516964]
[1733404500919,0.30564305,103110.0,103100.0,1.12516964]
[1733404501136,0.38344305,103110.0,103100.0,1.12516964]
[1733404502914,0.38044305,103110.0,103100.0,1.12516964]
[1733404503122,0.37444305,103110.0,103100.0,1.12416964]
[1733404503335,0.38344305,103110.0,103100.0,1.12516964]
[1733404503544,0.38044305,103110.0,103100.0,1.12516964]
[1733404504671,0.57185716,103110.0,103100.0,1.12516964]
[1733404505322,2.07485716,103110.0,103100.0,1.12516964]
[1733404505797,2.12285716,103110.0,103100.0,1.12516964]
[1733404506017,2.28137763,103110.0,103100.0,1.12516964]
[1733404506227,2.17285716,103110.0,103100.0,1.12516964]
[1733404506875,0.54405716,103110.0,103100.0,1.12516964]
[1733404507094,0.10267605,103110.0,103100.0,1.42767611]
[1733404507310,0.003,103110.0,103100.0,1.42767611]
[1733404507525,0.003,103110.0,103100.0,1.42667611]
[1733404507737,0.10267605,103110.0,103100.0,1.12416964]
[1733404507985,0.40564305,103110.0,103100.0,1.12416964]
[1733404508208,0.11167605,103110.0,103100.0,1.23269011]
[1733404508428,0.11167605,103110.0,103100.0,1.42667611]
[1733404508641,0.009,103110.0,103100.0,1.42667611]
[1733404508854,0.009,103110.0,103100.0,1.50847611]
[1733404509075,0.012,103110.0,103100.0,1.50847611]
[1733404509299,0.003,103110.0,103100.0,1.65847611]
[1733404509504,0.012,103110.0,103100.0,1.65847611]
[1733404510591,0.012,103110.0,103100.0,1.57667611]
[1733404512374,0.012,103110.0,103100.0,1.76349658]
[1733404512578,0.012,103110.0,103100.0,1.81079658]
[1733404513432,0.3772462,103140.0,103120.0,0.193943]
[1733404513638,0.09967605,103130.0,103120.0,0.10852047]
[1733404513847,0.29360505,103130.0,103120.0,0.096974]
[1733404514266,0.52140505,103130.0,103120.0,0.096974]
[1733404515333,2.02140505,103130.0,103120.0,0.096974]
[1733404515557,2.02440505,103130.0,103120.0,0.096974]
[1733404515811,0.52440505,103130.0,103120.0,0.096974]
[1733404516016,0.53340505,103130.0,103120.0,0.096974]
[1733404516227,0.40560505,103130.0,103120.0,0.096974]
[1733404516649,0.41160505,103130.0,103120.0,0.096974]
[1733404516858,0.39360505,103130.0,103120.0,0.096974]
[1733404517318,0.40260505,103130.0,103120.0,0.096974]
[1733404517525,0.30260505,103130.0,103120.0,0.096974]
[1733404517736,0.10867605,103130.0,103120.0,0.39944247]
[1733404517943,0.012,103130.0,103120.0,0.50284247]
[1733404518152,0.012,103130.0,103120.0,0.65284247]
[1733404518367,0.012,103130.0,103120.0,0.57244247]
[1733404518586,0.012,103130.0,103120.0,0.269974]
[1733404518799,0.30560505,103130.0,103120.0,0.269974]
[1733404519419,0.30560505,103130.0,103110.0,0.46938542]
[1733404520083,0.30560505,103130.0,103110.0,0.46938442]
[1733404520328,0.012,103130.0,103120.0,0.3850382]
[1733404520536,0.003,103130.0,103120.0,0.38406847]
[1733404520742,0.003,103130.0,103120.0,0.48104247]
[1733404520982,0.012,103130.0,103120.0,0.48104247]
[1733404521187,0.009,103130.0,103120.0,0.48104247]
[1733404521602,0.012,103130.0,103120.0,0.096974]
[1733404521811,0.30560505,103130.0,103120.0,0.096974]
[1733404522019,0.30260505,103130.0,103120.0,0.096974]
[1733404522433,0.30560505,103130.0,103120.0,0.096974]
[1733404522645,0.29660505,103130.0,103120.0,0.096974]
[1733404522845,0.29360505,103130.0,103120.0,0.096974]
[1733404523060,0.009,103130.0,103120.0,0.39944247]
[1733404524347,0.012,103130.0,103120.0,0.39944247]
[1733404525208,0.012,103130.0,103120.0,0.48114247]
[1733404529048,0.012,103130.0,103120.0,0.47678668]
[1733404529268,0.012,103130.0,103120.0,0.48696497]
[1733404531229,0.0128673,103130.0,103120.0,0.48696497]
[1733404532083,0.0128673,103130.0,103120.0,0.74126149]
[1733404532305,0.0128673,103130.0,103120.0,0.73274102]
[1733404532976,0.0128673,103130.0,103120.0,0.94847651]
[1733404533181,0.0038673,103130.0,103120.0,0.94847651]
[1733404533627,0.0128673,103130.0,103120.0,0.94847651]
[1733404534085,0.0098673,103130.0,103120.0,0.94847651]
[1733404534500,0.0128673,103130.0,103120.0,1.05699698]
[1733404535343,0.0128673,103130.0,103120.0,0.94847651]
[1733404535774,0.0128673,103130.0,103120.0,1.05699698]
[1733404535985,0.0128673,103130.0,103120.0,0.94847651]
[1733404536192,0.0128673,103130.0,103120.0,1.05699698]
[1733404536668,0.0128673,103130.0,103120.0,0.84847651]
[1733404537100,0.0128673,103130.0,103120.0,0.94847651]
[1733404537349,0.0128673,103130.0,103120.0,1.05699698]
[1733404539400,0.0128673,103130.0,103120.0,1.05656049]
[1733404540056,0.0128673,103130.0,103120.0,1.05655814]
[1733404540503,0.0128673,103130.0,103120.0,1.12961747]
[1733404541604,0.0128673,103130.0,103120.0,1.08645061]
[1733404541817,3e-07,103130.0,103120.0,1.08645061]
[1733404542438,3e-07,103130.0,103120.0,0.87126149]
[1733404542645,3e-07,103130.0,103120.0,1.12961747]
[1733404542908,3.7e-07,103140.0,103130.0,0.522129]
[1733404543120,3.7e-07,103140.0,103130.0,0.9454019]
[1733404543332,3.7e-07,103140.0,103130.0,0.58294552]
[1733404544384,0.00900037,103140.0,103130.0,0.73966599]
[1733404544588,0.00900037,103140.0,103130.0,0.63114552]
[1733404545005,0.01100037,103140.0,103130.0,0.63114552]
[1733404545895,0.01100037,103140.0,103130.0,0.73966599]
[1733404546111,0.01100037,103140.0,103130.0,0.63114552]
[1733404546366,0.01100037,103140.0,103130.0,0.73966599]
[1733404547156,0.01100037,103140.0,103130.0,0.63114552]
[1733404547407,0.01100037,103140.0,103130.0,0.73966599]
[1733404548646,0.01100037,103140.0,103130.0,0.7591945]
[1733404549884,0.01100037,103140.0,103130.0,0.67367403]
[1733404550330,0.08680037,103140.0,103130.0,0.318249]
[1733404550565,0.38038742,103140.0,103130.0,0.12432]
[1733404550775,0.08680037,103140.0,103130.0,0.42676947]
[1733404550984,0.01100037,103140.0,103130.0,0.42676947]
[1733404551417,0.00900037,103140.0,103130.0,0.42676947]
[1733404552718,3.7e-07,103140.0,103130.0,0.42676947]
[1733404553129,0.00900037,103140.0,103130.0,0.42776947]
[1733404554030,0.01100037,103140.0,103130.0,0.42776947]
[1733404554527,0.00900037,103140.0,103130.0,0.42776947]
[1733404554988,0.01100037,103140.0,103130.0,0.42776947]
[1733404555233,0.20491137,103140.0,103130.0,0.10232]
[1733404555457,0.20491137,103140.0,103130.0,0.40476947]
[1733404555682,0.01100037,103140.0,103130.0,0.40476947]
[1733404555953,0.20491137,103140.0,103130.0,0.21084047]
[1733404556677,0.20577857,103140.0,103130.0,0.40476947]
[1733404556902,0.01186757,103140.0,103130.0,0.40476947]
[1733404557869,0.01186757,103140.0,103130.0,0.65444552]
[1733404558124,0.01186757,103140.0,103130.0,0.73604552]
[1733404558605,0.01186757,103140.0,103130.0,0.78164552]
[1733404559523,0.01186757,103140.0,103130.0,0.99736472]
[1733404559956,0.01186757,103140.0,103130.0,0.99735978]
[1733404560796,0.01186757,103140.0,103130.0,1.00749049]
[1733404561018,0.01186757,103140.0,103130.0,1.05063334]
[1733404561234,0.01186757,103140.0,103130.0,1.15915381]
[1733404561444,0.00086757,103140.0,103130.0,1.15815381]
[1733404561652,0.00086757,103140.0,103130.0,1.05063334]
[1733404561653,0.00986757,103140.0,103130.0,1.05063334]
[1733404562793,0.01186757,103140.0,103130.0,1.05063334]
[1733404563030,0.01186757,103140.0,103130.0,1.15915381]
[1733404563262,0.01186757,103140.0,103130.0,1.17874541]
[1733404564234,0.01186757,103140.0,103130.0,1.27874541]
[1733404565171,0.01186757,103140.0,103130.0,1.17022494]
[1733404565393,0.01186757,103140.0,103130.0,1.12712668]
[1733404565885,0.01186757,103140.0,103130.0,1.27874541]
[1733404568263,0.01186757,103140.0,103130.0,10.27874541]
[1733404568772,0.01186757,103140.0,103130.0,10.40210701]
[1733404569008,0.01186757,103140.0,103130.0,10.40384121]
[1733404569223,0.01186757,103140.0,103130.0,10.43303785]
[1733404569471,0.01186757,103140.0,103130.0,10.40384121]
[1733404570175,0.24216736,103150.0,103140.0,0.591011]
[1733404570429,0.24216736,103150.0,103140.0,1.16659499]
[1733404570653,0.24216736,103150.0,103140.0,1.26790499]
[1733404571840,0.25116736,103150.0,103140.0,1.26890499]
[1733404572295,0.24216736,103150.0,103140.0,1.26790499]
[1733404572805,0.24416736,103150.0,103140.0,1.26790499]
[1733404573254,0.24216736,103150.0,103140.0,1.26784042]
[1733404573498,0.1813885,103150.0,103140.0,1.26784042]
[1733404573745,0.1823885,103150.0,103140.0,1.28584042]
[1733404573984,0.1661385,103150.0,103140.0,1.27684042]
[1733404574217,0.1661385,103150.0,103140.0,1.28584042]
[1733404574446,0.1661385,103150.0,103140.0,1.38584042]
[1733404574896,0.048372,103150.0,103140.0,1.38584042]
[1733404575436,0.028983,103150.0,103140.0,1.38584042]
[1733404575652,0.0008674,103180.0,103170.0,0.0801]
[1733404575902,0.0014534,103180.0,103170.0,0.28926554]
[1733404576128,0.0014534,103180.0,103170.0,0.58343052]
[1733404577077,0.0034534,103180.0,103170.0,0.58343052]
[1733404577330,0.0034534,103180.0,103170.0,0.69195099]
[1733404577579,0.0114534,103180.0,103170.0,0.79295099]
[1733404581366,0.0064534,103180.0,103170.0,0.79295099]
[1733404582061,0.0064534,103180.0,103170.0,0.80293868]
[1733404582755,0.0064534,103180.0,103170.0,0.70293868]
[1733404582996,0.0064534,103180.0,103170.0,0.62283868]
[1733404583930,0.0064534,103180.0,103170.0,0.72283868]
[1733404584625,0.0064534,103180.0,103170.0,0.62283868]
[1733404585132,0.0064534,103180.0,103170.0,0.59397599]
[1733404586783,0.0064534,103180.0,103170.0,0.38577947]
[1733404587012,0.0064534,103180.0,103170.0,0.51396791]
[1733404587465,0.0064534,103180.0,103170.0,0.69534396]
[1733404587686,0.0064534,103180.0,103170.0,0.61364396]
[1733404588131,0.00552743,103180.0,103170.0,0.61364396]
[1733404588822,0.00552743,103180.0,103170.0,0.71364396]
[1733404589898,0.00552743,103180.0,103170.0,0.79204396]
[1733404592020,0.00726303,103180.0,103170.0,0.79204396]
[1733404593344,0.00726303,103180.0,103170.0,0.69204396]
[1733404593566,0.00726303,103180.0,103170.0,0.61364396]
[1733404594776,0.00726303,103180.0,103170.0,0.40544744]
[1733404595004,0.00726303,103180.0,103170.0,0.22078816]
[1733404595231,0.38127508,103180.0,103170.0,0.10228]
[1733404595655,0.08776303,103180.0,103170.0,0.40465447]
[1733404596084,0.08776303,103180.0,103170.0,0.21080047]
[1733404596299,0.08776303,103180.0,103170.0,0.10128]
[1733404596300,0.0822356,103180.0,103170.0,0.10128]
[1733404596528,0.38474765,103180.0,103170.0,0.10228]
[1733404596984,0.37674765,103180.0,103170.0,0.10128]
[1733404597216,0.38474765,103180.0,103170.0,0.10228]
[1733404597903,0.38474765,103180.0,103150.0,0.49628047]
[1733404598129,0.193854,103170.0,103160.0,0.193872]
[1733404598850,0.193854,103170.0,103160.0,0.290802]
[1733404599352,0.57859765,103180.0,103160.0,0.290802]
[1733404599580,0.77244965,103180.0,103160.0,0.290802]
[1733404599821,0.76344965,103180.0,103160.0,0.290802]
[1733404600053,0.009,103170.0,103160.0,0.291802]
[1733404600311,0.009,103170.0,103160.0,0.290802]
[1733404600770,0.009,103170.0,103160.0,0.291802]
[1733404600985,0.86344465,103180.0,103160.0,0.290802]
[1733404601191,0.001,103170.0,103160.0,0.290802]
[1733404601417,0.009,103170.0,103160.0,0.290802]
[1733404601851,0.008,103170.0,103160.0,0.290802]
[1733404603000,0.201854,103170.0,103160.0,0.290802]
[1733404604637,0.202854,103170.0,103160.0,0.290802]
[1733404605348,0.202854,103170.0,103160.0,0.2916698]
[1733404605588,0.009,103170.0,103160.0,0.2916698]
[1733404606989,0.009,103170.0,103160.0,0.40019027]
[1733404609097,0.009,103170.0,103160.0,0.77776632]
[1733404609293,0.009,103170.0,103160.0,0.88628679]
[1733404609492,0.009,103170.0,103160.0,1.10158813]
[1733404609646,0.009,103170.0,103160.0,1.03612793]
[1733404610061,0.009,103170.0,103160.0,1.05519859]
[1733404610264,0.009,103170.0,103160.0,1.26371906]
[1733404610909,0.009,103170.0,103160.0,1.2979352]
[1733404611568,0.008,103170.0,103160.0,1.42106066]
[1733404611991,0.009,103170.0,103160.0,1.43006066]
[1733404612198,0.009,103170.0,103160.0,1.45917246]
[1733404612851,0.009,103170.0,103160.0,1.45929486]
[1733404613063,0.001,103170.0,103160.0,1.45929486]
[1733404613288,0.0017356,103180.0,103170.0,0.443854]
[1733404613514,0.0017356,103180.0,103170.0,1.01900283]
[1733404613749,0.0017356,103180.0,103170.0,1.11592983]
[1733404614598,0.0117356,103180.0,103170.0,1.11692983]
[1733404615942,0.0027356,103180.0,103170.0,1.11592983]
[1733404616425,0.0027356,103180.0,103170.0,1.12492983]
[1733404616632,0.0037356,103180.0,103170.0,1.13392983]
[1733404617260,0.0037356,103180.0,103170.0,1.21212983]
[1733404617695,0.0037356,103180.0,103170.0,1.21210917]
[1733404618778,0.0037356,103180.0,103170.0,1.59365515]
[1733404619005,0.0037356,103180.0,103170.0,1.21209489]
[1733404620785,0.0037356,103180.0,103170.0,1.22227324]
[1733404621421,0.0037356,103180.0,103170.0,1.22223948]
[1733404621653,0.0037356,103180.0,103170.0,1.2222305]
[1733404622293,0.0037356,103180.0,103170.0,1.2684305]
[1733404622513,0.0037356,103180.0,103170.0,1.30264664]
[1733404623613,0.0037356,103180.0,103170.0,1.68412271]
[1733404623816,0.0037356,103180.0,103170.0,1.42576855]
[1733404624027,0.0037356,103180.0,103170.0,1.68403339]
[1733404624497,0.0037356,103180.0,103170.0,1.42576855]
[1733404624717,0.0037356,103180.0,103170.0,1.41455241]
[1733404625583,0.0037356,103180.0,103170.0,1.44876855]
[1733404625803,0.0008677,103190.0,103180.0,0.524636]
[1733404626009,0.00104343,103190.0,103180.0,0.99113183]
[1733404626262,0.00104343,103190.0,103180.0,1.08805609]
[1733404626953,0.01004343,103190.0,103180.0,1.08905609]
[1733404627612,0.0008677,103200.0,103190.0,0.293817]
[1733404627818,0.0008677,103200.0,103190.0,0.97014096]
[1733404628028,0.0008677,103200.0,103190.0,0.61444444]
[1733404628262,0.0805677,103200.0,103190.0,0.50592397]
[1733404628481,0.0805677,103200.0,103190.0,0.290726]
[1733404628703,0.0805677,103200.0,103190.0,0.39924647]
[1733404629178,0.0805677,103200.0,103190.0,0.12801706]
[1733404629460,0.0805677,103200.0,103190.0,0.32280299]
[1733404629697,0.0815677,103200.0,103190.0,0.33083406]
[1733404630224,0.193798,103200.0,103190.0,0.02849659]
[1733404630457,0.29347405,103200.0,103190.0,0.02849659]
[1733404630691,0.29447405,103200.0,103190.0,0.03749659]
[1733404630909,0.001,103200.0,103190.0,0.14601706]
[1733404631184,0.001,103200.0,103190.0,0.33180304]
[1733404631412,0.003,103200.0,103190.0,0.51663906]
[1733404632131,0.003,103200.0,103190.0,0.02049659]
[1733404632374,0.003,103200.0,103190.0,0.32283406]
[1733404632597,0.29647405,103200.0,103190.0,0.12801706]
[1733404632822,0.10067605,103200.0,103190.0,0.12801706]
[1733404633283,0.0607,103200.0,103190.0,0.12801706]
[1733404633504,0.06018633,103200.0,103190.0,0.32183406]
[1733404633966,0.00048633,103200.0,103190.0,0.32183406]
[1733404638421,0.29396038,103200.0,103190.0,0.01949659]
[1733404638654,0.29396038,103200.0,103190.0,0.12801706]
[1733404639849,0.00048633,103200.0,103190.0,0.32183406]
[1733404640090,0.00222213,103200.0,103190.0,0.32183406]
[1733404641009,0.29347405,103200.0,103190.0,0.01949659]
[1733404641248,0.53439452,103200.0,103190.0,0.01949659]
[1733404641525,0.32587405,103200.0,103190.0,0.01949659]
[1733404641741,0.42587405,103200.0,103190.0,0.01949659]
[1733404641971,1.82587405,103200.0,103190.0,0.01949659]
[1733404642183,0.32587405,103200.0,103190.0,0.12801706]
[1733404642412,0.32687405,103200.0,103190.0,0.01949659]
[1733404642635,0.33087405,103200.0,103190.0,0.02049659]
[1733404642865,0.32687405,103200.0,103190.0,0.01949659]
[1733404643075,0.32587405,103200.0,103190.0,0.01949659]
[1733404643294,0.32587405,103200.0,103190.0,0.02049659]
[1733404643295,0.33087405,103200.0,103190.0,0.02049659]
[1733404643551,0.42687405,103200.0,103190.0,0.01949659]
[1733404643785,0.42987405,103200.0,103190.0,0.02049659]
[1733404644014,0.48787405,103200.0,103190.0,0.02049659]
[1733404646078,0.35547405,103200.0,103190.0,0.02049659]
[1733404646317,0.35047405,103200.0,103190.0,0.02049659]
[1733404647959,0.198798,103200.0,103190.0,0.02049659]
[1733404649335,0.29847405,103200.0,103190.0,0.02049659]
[1733404649568,0.49539327,103200.0,103190.0,0.02049659]
[1733404649798,0.43087405,103200.0,103190.0,0.02049659]
[1733404650483,0.42987405,103200.0,103190.0,0.02049659]
[1733404650729,0.43087405,103200.0,103190.0,0.02049659]
[1733404651409,0.293874,103160.0,103130.0,9.2177169]
[1733404651646,0.48748705,103150.0,103130.0,9.0017342]
[1733404652111,0.68139505,103150.0,103130.0,9.20721467]
[1733404652354,0.48748705,103150.0,103130.0,9.20721467]
[1733404652621,0.48748505,103150.0,103130.0,9.0986942]
[1733404652844,0.193911,103140.0,103130.0,9.0992802]
[1733404654025,0.193911,103140.0,103130.0,9.1002802]
[1733404654265,0.48748505,103150.0,103130.0,9.0992802]
[1733404654506,0.006,103140.0,103130.0,9.1002802]
[1733404654742,0.199911,103140.0,103130.0,9.1002802]
[1733404656160,0.48748505,103150.0,103130.0,9.2932092]
[1733404656161,0.68139205,103150.0,103130.0,9.2932092]
[1733404656397,0.68139205,103150.0,103130.0,9.2942092]
[1733404656620,0.193911,103140.0,103130.0,9.2942092]
[1733404656844,0.49348505,103150.0,103130.0,9.2932092]
[1733404657118,0.49348505,103150.0,103140.0,0.30340095]
[1733404657119,0.006,103150.0,103140.0,0.30340095]
[1733404657332,0.38772,103170.0,103140.0,0.20852047]
[1733404657555,0.48739605,103170.0,103150.0,0.3033698]
[1733404657796,0.48739605,103170.0,103150.0,0.4972528]
[1733404658024,0.29353305,103170.0,103150.0,0.48567833]
[1733404658268,0.48739505,103170.0,103150.0,0.48567833]
[1733404658508,0.29353305,103170.0,103150.0,0.48567833]
[1733404658727,0.09967605,103170.0,103150.0,0.67955933]
[1733404659025,0.09967605,103170.0,103150.0,0.48567633]
[1733404659248,0.09967605,103170.0,103150.0,0.67955933]
[1733404659714,0.09967605,103170.0,103160.0,0.193873]
[1733404659934,0.29453105,103170.0,103150.0,0.824089]
[1733404660151,0.30053105,103170.0,103160.0,0.096937]
[1733404660421,0.29953105,103170.0,103160.0,0.096937]
[1733404660647,0.30053105,103170.0,103160.0,0.096937]
[1733404660889,0.29453105,103170.0,103160.0,0.096937]
[1733404661358,0.30053105,103170.0,103160.0,0.096937]
[1733404661804,0.29953105,103170.0,103160.0,0.096937]
[1733404662028,0.10567605,103170.0,103160.0,0.096937]
[1733404662272,0.10667605,103170.0,103160.0,0.096937]
[1733404662500,0.29453005,103170.0,103160.0,0.096937]
[1733404662740,0.30053005,103170.0,103160.0,0.097937]
[1733404663415,0.10667605,103170.0,103160.0,0.097937]
[1733404663650,0.10667605,103170.0,103160.0,0.29181]
[1733404663876,0.10667605,103170.0,103160.0,0.097937]
[1733404664112,0.30053005,103170.0,103160.0,0.097937]
[1733404665051,0.30053005,103170.0,103150.0,0.6825155]
[1733404665794,0.10667605,103170.0,103160.0,0.193873]
[1733404666013,0.09967605,103170.0,103160.0,0.193873]
[1733404666452,0.10667605,103170.0,103160.0,0.193873]
[1733404666932,0.006,103170.0,103160.0,0.4527628]
[1733404667158,0.45537811,103200.0,103180.0,0.193836]
[1733404667392,0.09967605,103190.0,103180.0,0.193826]
[1733404667616,0.09967605,103190.0,103180.0,0.387649]
[1733404668498,0.09985165,103190.0,103180.0,0.387649]
[1733404669182,0.10085165,103190.0,103180.0,0.387649]
[1733404669402,0.10085165,103190.0,103180.0,0.484567]
[1733404669630,0.10085165,103190.0,103180.0,0.59408747]
[1733404669631,0.0011756,103190.0,103180.0,0.59408747]
[1733404669853,0.0011756,103190.0,103180.0,0.69308747]
[1733404670069,0.0011756,103190.0,103180.0,0.77498747]
[1733404670290,0.0081756,103190.0,103180.0,0.77598747]
[1733404670969,0.0011756,103190.0,103180.0,0.77498747]
[1733404671408,0.0071756,103190.0,103180.0,0.82408747]
[1733404671870,0.0071756,103190.0,103180.0,0.72408747]
[1733404672086,0.0071756,103190.0,103180.0,0.82408747]
[1733404672758,0.0081756,103190.0,103180.0,0.82408747]
[1733404673460,0.0071756,103190.0,103180.0,0.421741]
[1733404673677,0.0071756,103190.0,103180.0,0.227918]
[1733404673891,0.2019926,103190.0,103180.0,0.097918]
[1733404674325,0.2009926,103190.0,103180.0,0.097918]
[1733404674550,0.1958605,103190.0,103180.0,0.096918]
[1733404674769,0.29553655,103190.0,103180.0,0.096918]
[1733404674982,0.30253655,103190.0,103180.0,0.097918]
[1733404675201,0.40045577,103190.0,103180.0,0.097918]
[1733404675679,0.10871955,103190.0,103180.0,0.097918]
[1733404675901,0.0090435,103190.0,103180.0,0.73111955]
[1733404676127,0.0090435,103190.0,103180.0,0.73015052]
[1733404676366,0.0090435,103190.0,103180.0,0.88015052]
[1733404676589,0.0090435,103190.0,103180.0,1.09523037]
[1733404676814,0.0080435,103190.0,103180.0,1.09523037]
[1733404677040,0.0080435,103190.0,103180.0,0.88015052]
[1733404677273,0.0020435,103190.0,103180.0,0.87915052]
[1733404677480,0.0020435,103190.0,103180.0,1.09423037]
[1733404677704,0.0090435,103190.0,103180.0,1.09523037]
[1733404678392,0.0090435,103190.0,103180.0,1.10311228]
[1733404679249,0.0090435,103190.0,103180.0,1.12278594]
[1733404681945,0.0090435,103190.0,103180.0,1.12268939]
[1733404684911,0.0090435,103190.0,103180.0,1.12269615]
[1733404686240,0.0090435,103190.0,103180.0,1.12443155]
[1733404686457,0.0090435,103190.0,103180.0,0.90944149]
[1733404686932,0.0090435,103190.0,103180.0,1.12443155]
[1733404687168,0.0090435,103190.0,103180.0,0.90944149]
[1733404687654,0.0090435,103190.0,103180.0,1.12443155]
[1733404687886,0.0090435,103190.0,103180.0,0.90944149]
[1733404688116,0.0090435,103190.0,103180.0,1.12443155]
[1733404688356,0.0090435,103190.0,103180.0,0.90944149]
[1733404688577,0.0090435,103190.0,103180.0,1.12443155]
[1733404689019,0.0090435,103190.0,103180.0,0.90944149]
[1733404689958,0.0090435,103190.0,103180.0,1.12443155]
[1733404690811,0.0090435,103190.0,103180.0,1.12443155]
[1733404691284,0.0090435,103190.0,103180.0,0.90944149]
[1733404692644,0.0090435,103190.0,103180.0,1.12443155]
[1733404693139,0.0090435,103190.0,103180.0,0.90944149]
[1733404694054,0.0090435,103190.0,103180.0,0.80976544]
[1733404694279,0.0090435,103190.0,103180.0,1.01796196]
[1733404694508,0.0090435,103190.0,103180.0,0.90944149]
[1733404696385,0.0090435,103190.0,103180.0,1.01796196]
[1733404697254,0.0090435,103190.0,103180.0,1.33267296]
[1733404698427,0.0090435,103190.0,103180.0,1.22415249]
[1733404700883,1e-08,103190.0,103180.0,1.22415249]
[1733404702024,0.001,103190.0,103180.0,1.22315249]
[1733404702481,0.001,103190.0,103180.0,1.26609469]